bitfinex-derivatives/quotes_ETHF0:USTF0_20240930
["timestamp","ask_amount","ask_price","bid_price","bid_amount"]
[1727660534931,0.401,2642.8,2642.6,0.30264]
[1727660535132,0.401,2642.8,2642.4,3.6145]
[1727660535133,0.3713,2643.1,2642.7,0.30263]
[1727660535831,0.3713,2643.1,2642.5,4.28310696]
[1727660536026,0.3713,2643.1,2642.8,0.30263]
[1727660536531,0.68149,2643.2,2642.7,3.51044]
[1727660536733,1.05279,2643.2,2642.7,3.51044]
[1727660537227,0.7502,2643.2,2642.8,0.30262]
[1727660538534,0.7502,2643.2,2642.8,0.68432]
[1727660539028,0.7502,2643.2,2642.8,0.3817]
[1727660539232,2.36,2643.5,2642.9,0.4026]
[1727660539531,2.36,2643.5,2643.0,3.5104]
[1727660539532,0.30255,2643.5,2643.0,3.5104]
[1727660539733,4.0078,2643.6,2643.0,3.2078]
[1727660539933,2.36,2643.5,2642.9,0.7875]
[1727660540137,2.66255,2643.5,2643.0,3.5104]
[1727660542838,2.66256,2643.5,2643.0,3.5104]
[1727660543534,2.66256,2643.5,2643.0,3.2078]
[1727660543731,2.66256,2643.5,2643.1,0.30259]
[1727660544835,2.36,2643.5,2643.2,0.30258]
[1727660545233,2.36,2643.5,2643.0,3.2078]
[1727660545426,3.6024,2643.6,2643.0,3.2078]
[1727660545626,2.37,2643.8,2643.6,0.30253]
[1727660545627,0.01,2643.8,2643.6,0.30253]
[1727660546439,0.01,2643.8,2643.7,0.30253]
[1727660546730,0.01,2643.8,2643.5,4.46923827]
[1727660546935,0.01,2643.8,2643.5,4.77177827]
[1727660547529,0.01,2643.8,2643.6,0.30253]
[1727660550538,0.01,2643.8,2643.5,4.46923827]
[1727660550842,0.01,2643.8,2643.6,0.30253]
[1727660551042,0.01,2643.8,2643.5,4.46923827]
[1727660551242,0.01,2643.8,2643.6,0.30254]
[1727660551538,0.01,2643.8,2643.5,4.46923827]
[1727660551754,0.01,2643.8,2643.5,4.77177827]
[1727660552440,0.01,2643.8,2643.5,4.09023827]
[1727660552641,0.31252,2643.8,2643.5,4.09023827]
[1727660552835,0.31252,2643.8,2643.5,4.39277827]
[1727660552836,0.01,2643.8,2643.5,4.39277827]
[1727660553835,0.01,2643.8,2643.5,4.09023827]
[1727660554035,3.25888957,2643.8,2643.5,4.09023827]
[1727660554641,2.95636957,2643.8,2643.5,4.39277827]
[1727660555544,2.95636957,2643.8,2643.5,4.09023827]
[1727660555749,3.25888957,2643.8,2643.5,4.09023827]
[1727660556049,2.95636957,2643.8,2643.5,4.09023827]
[1727660556236,2.95636957,2643.8,2643.4,3.2078]
[1727660556237,0.30255,2643.5,2643.4,3.2078]
[1727660556432,0.30255,2643.5,2642.9,3.2078]
[1727660556433,0.3026,2643.1,2642.9,3.2078]
[1727660556746,0.3026,2643.1,2642.8,0.7507]
[1727660556935,0.3026,2643.1,2642.8,0.3783]
[1727660557138,0.3026,2643.1,2642.6,3.5947]
[1727660557139,3.24896957,2643.1,2642.7,0.30264]
[1727660558546,0.30262,2643.0,2642.6,3.2078]
[1727660558937,3.24898957,2643.0,2642.6,3.2078]
[1727660559339,2.94636957,2643.0,2642.6,3.2078]
[1727660559536,2.94636957,2643.1,2642.7,0.30264]
[1727660559743,3.2078,2643.3,2642.6,3.2078]
[1727660559938,0.30258,2643.2,2642.7,0.30264]
[1727660560139,3.2078,2643.3,2642.6,4.19210838]
[1727660560340,0.30258,2643.3,2642.8,0.30262]
[1727660560744,3.51038,2643.3,2642.8,0.30262]
[1727660561746,3.2078,2643.3,2642.6,3.2078]
[1727660561951,3.2078,2643.3,2642.7,0.30263]
[1727660561952,0.30259,2643.2,2642.7,0.30263]
[1727660562452,3.51038,2643.3,2642.8,0.30262]
[1727660562650,3.2078,2643.3,2642.6,3.2078]
[1727660562853,0.30259,2643.2,2642.7,0.30264]
[1727660563254,2.36,2643.2,2642.6,3.2078]
[1727660563457,0.30261,2643.0,2642.6,3.2078]
[1727660563753,0.30261,2643.0,2642.6,3.51045]
[1727660563946,0.4072,2642.9,2642.6,3.2078]
[1727660564259,0.4072,2642.9,2642.7,0.30264]
[1727660564450,0.4072,2642.9,2642.6,3.51045]
[1727660564649,0.4072,2642.9,2642.7,0.30264]
[1727660566245,0.4072,2642.9,2642.7,3.51044]
[1727660572349,2.7406,2643.4,2642.7,3.2078]
[1727660572556,0.68316,2643.4,2643.0,0.3026]
[1727660572868,0.68316,2643.4,2643.1,0.70959]
[1727660573047,0.30258,2643.3,2643.1,0.407]
[1727660573971,0.30258,2643.3,2642.7,3.2078]
[1727660573972,6.991,2643.3,2642.7,3.2078]
[1727660574257,6.991,2643.3,2642.6,0.407]
[1727660574258,2.36,2643.2,2642.6,0.407]
[1727660574450,0.30262,2643.0,2642.6,0.70965]
[1727660574650,0.30262,2643.0,2642.6,4.76344611]
[1727660575048,2.36,2643.2,2642.6,4.76344611]
[1727660575251,0.30262,2642.9,2642.6,4.46079611]
[1727660576362,0.30261,2643.0,2642.6,4.76344611]
[1727660576950,0.30262,2642.9,2642.6,4.46079611]
[1727660577155,2.36,2643.2,2642.6,4.46079611]
[1727660577461,2.36,2643.2,2642.6,4.76344611]
[1727660577462,0.30261,2643.0,2642.6,4.76344611]
[1727660578176,0.30262,2642.9,2642.6,4.76344611]
[1727660581162,0.30262,2642.9,2642.6,4.46079611]
[1727660581354,2.36,2642.7,2642.3,3.6033]
[1727660581556,2.36,2642.7,2642.3,0.4072]
[1727660581557,5.5678,2642.7,2642.3,0.4072]
[1727660581755,0.30265,2642.6,2642.3,0.70988]
[1727660582157,5.87045,2642.7,2642.3,0.70988]
[1727660583256,2.66265,2642.7,2642.3,0.4072]
[1727660583456,2.66265,2642.7,2642.4,0.30267]
[1727660583852,2.66265,2642.7,2642.3,0.4072]
[1727660583853,0.3817,2642.8,2642.3,0.4072]
[1727660584060,0.3817,2642.8,2642.5,0.30266]
[1727660584367,0.68433,2642.8,2642.4,0.30267]
[1727660586465,0.30264,2642.7,2642.3,0.70988]
[1727660588659,0.68434,2642.8,2642.3,0.70988]
[1727660588865,0.3817,2642.8,2642.3,0.70988]
[1727660589058,0.30264,2642.7,2642.3,0.70988]
[1727660589959,0.3817,2642.8,2642.3,0.4072]
[1727660589960,0.30265,2642.6,2642.3,0.4072]
[1727660590166,0.3817,2642.8,2642.3,0.70988]
[1727660590167,0.30265,2642.7,2642.3,0.70988]
[1727660591270,0.3817,2642.8,2642.3,0.4072]
[1727660591570,3.51045,2642.7,2642.3,0.70988]
[1727660591870,0.30266,2642.6,2642.3,0.4072]
[1727660594269,3.2078,2642.7,2642.3,0.4072]
[1727660594473,0.30267,2642.4,2642.3,0.4072]
[1727660594873,0.3027,2642.2,2642.1,0.3911]
[1727660595079,0.3027,2642.2,2642.0,7.3378]
[1727660595080,0.30271,2642.2,2642.0,3.6141]
[1727660595368,2.36,2642.5,2642.0,3.6141]
[1727660595565,0.30269,2642.3,2642.0,3.6141]
[1727660595765,0.3027,2642.2,2642.0,3.6141]
[1727660595967,0.30269,2642.3,2642.0,3.6141]
[1727660596372,0.3786,2642.4,2642.0,3.6141]
[1727660596673,0.30271,2642.1,2642.0,3.2078]
[1727660597173,0.30271,2642.1,2642.0,2.58877]
[1727660597174,10.08751,2642.1,2642.0,2.58877]
[1727660597479,10.08751,2642.1,2641.3,0.3853]
[1727660597480,0.30276,2641.7,2641.3,0.3853]
[1727660597774,3.2078,2641.7,2641.4,0.30279]
[1727660598176,3.2078,2641.7,2641.3,0.68809]
[1727660598363,0.30274,2641.8,2641.3,0.68809]
[1727660598364,3.51054,2641.8,2641.3,3.89589]
[1727660599067,0.3829,2641.9,2641.4,4.33873936]
[1727660599263,0.3829,2641.9,2641.4,4.64152936]
[1727660599264,3.2078,2641.8,2641.4,4.64152936]
[1727660599478,3.2078,2641.8,2641.4,4.33873936]
[1727660599673,0.3829,2641.9,2641.6,0.30276]
[1727660599879,0.3829,2641.9,2641.7,0.3815]
[1727660600081,2.36,2642.2,2641.8,0.4089]
[1727660600082,0.30271,2642.1,2641.8,0.4089]
[1727660600279,2.36,2642.4,2641.8,0.4089]
[1727660600491,3.2078,2642.6,2642.0,0.30272]
[1727660600492,0.30267,2642.5,2642.0,0.30272]
[1727660600775,3.5929,2642.6,2641.9,0.67913]
[1727660600776,0.30268,2642.4,2641.9,0.67913]
[1727660601178,0.30268,2642.4,2642.0,0.30272]
[1727660601572,0.30268,2642.4,2641.9,0.67912]
[1727660601877,0.30267,2642.5,2642.0,0.30271]
[1727660602583,3.2078,2642.3,2642.0,0.30271]
[1727660602787,3.2078,2642.3,2641.9,0.3764]
[1727660603084,3.2078,2642.3,2642.2,0.3027]
[1727660603674,3.89556,2642.6,2642.0,4.04207347]
[1727660603881,3.89556,2642.6,2642.1,0.30271]
[1727660604275,3.5929,2642.6,2642.2,0.3998]
[1727660604481,0.30266,2642.5,2642.3,0.386]
[1727660609191,0.30267,2642.4,2642.3,0.386]
[1727660609387,0.30267,2642.4,2641.9,3.88692]
[1727660609388,2.36,2642.4,2641.9,3.5842]
[1727660609595,0.30271,2642.1,2641.9,3.5842]
[1727660609794,0.30272,2642.0,2641.9,3.2078]
[1727660610886,0.30272,2642.0,2641.8,0.7949]
[1727660611081,0.30273,2641.9,2641.8,0.3929]
[1727660611291,3.51053,2641.9,2641.8,0.3929]
[1727660612689,3.2078,2641.9,2641.8,0.3929]
[1727660612888,0.7653,2642.3,2641.8,0.3929]
[1727660612889,3.2078,2642.3,2641.8,0.3929]
[1727660613201,3.5105,2642.3,2641.9,0.68153]
[1727660614096,3.51049,2642.3,2641.9,0.68153]
[1727660614894,3.2078,2642.3,2641.9,0.3788]
[1727660615091,3.2078,2642.3,2641.9,0.68153]
[1727660615092,3.51049,2642.3,2641.9,0.68153]
[1727660615689,3.2078,2642.3,2641.9,0.3788]
[1727660615891,3.51049,2642.3,2641.9,0.68153]
[1727660616197,3.2078,2642.3,2642.0,0.30271]
[1727660616501,3.2078,2642.3,2642.0,0.30272]
[1727660616794,3.51049,2642.3,2641.9,0.68152]
[1727660617393,3.51049,2642.3,2641.9,0.3788]
[1727660617698,3.51049,2642.3,2642.0,0.30272]
[1727660618393,3.51049,2642.3,2641.9,0.3788]
[1727660618595,3.2078,2642.3,2641.9,0.68153]
[1727660618795,3.51049,2642.3,2641.9,0.68153]
[1727660619003,3.2078,2642.3,2641.9,0.3788]
[1727660619298,3.51049,2642.3,2641.9,0.68153]
[1727660622190,0.30271,2642.1,2641.8,0.3929]
[1727660622403,3.2078,2642.3,2641.8,0.3929]
[1727660622404,0.30273,2642.0,2641.8,0.3929]
[1727660622689,0.30274,2641.9,2641.6,3.51056]
[1727660622884,0.67584,2641.9,2641.6,3.90316]
[1727660623092,0.3731,2641.9,2641.6,3.90316]
[1727660623500,0.67584,2641.9,2641.6,3.90316]
[1727660624795,0.3731,2641.9,2641.6,0.3926]
[1727660625004,0.3731,2641.9,2641.3,1.37490838]
[1727660625005,2.7331,2641.9,2641.3,0.98430838]
[1727660625200,2.7331,2641.9,2641.2,3.5792]
[1727660625390,0.30277,2641.6,2641.2,3.5792]
[1727660625996,0.30278,2641.5,2641.2,3.5792]
[1727660626297,1.12996,2641.9,2641.2,3.5792]
[1727660626298,2.7331,2641.9,2641.2,3.5792]
[1727660626499,0.30275,2641.7,2641.2,3.5792]
[1727660626694,0.30275,2641.7,2641.3,0.3028]
[1727660631704,0.30277,2641.6,2641.2,3.882]
[1727660632007,0.30277,2641.6,2641.3,0.3028]
[1727660632203,5.9409,2641.9,2641.2,3.882]
[1727660632506,0.30277,2641.6,2641.3,0.3028]
[1727660632896,0.30277,2641.6,2641.2,3.88201]
[1727660633605,5.9409,2641.9,2641.3,0.3028]
[1727660633806,5.9409,2641.9,2641.2,3.88201]
[1727660633807,0.30277,2641.6,2641.2,3.88201]
[1727660635211,5.9409,2641.9,2641.2,3.5792]
[1727660635405,0.30278,2641.5,2641.2,3.5792]
[1727660635911,0.3028,2641.3,2641.2,0.3714]
[1727660636108,3.5106,2641.3,2641.2,0.3714]
[1727660638414,3.2078,2641.3,2641.2,0.3714]
[1727660638709,3.5106,2641.3,2641.2,0.3714]
[1727660638915,3.2078,2641.3,2641.2,0.3714]
[1727660639405,3.5106,2641.3,2641.2,0.3714]
[1727660639808,3.51061,2641.3,2641.1,0.3868]
[1727660640213,3.2078,2641.3,2641.1,0.3868]
[1727660640414,3.5106,2641.3,2641.1,0.3868]
[1727660640803,0.30281,2641.2,2641.1,0.3868]
[1727660641409,3.51061,2641.3,2641.1,0.3868]
[1727660641609,0.30281,2641.2,2640.9,0.30284]
[1727660641806,3.2078,2641.3,2640.8,0.7786]
[1727660641807,0.30285,2640.9,2640.8,0.7786]
[1727660642110,0.30285,2640.9,2640.5,0.30289]
[1727660642313,0.3971,2640.8,2640.6,0.4061]
[1727660643413,0.3971,2640.8,2640.6,0.70898]
[1727660643720,0.3971,2640.8,2640.7,0.30287]
[1727660644021,0.3971,2640.8,2640.6,0.4061]
[1727660644022,0.3971,2640.8,2640.6,0.70898]
[1727660644217,0.3971,2640.8,2640.6,0.4061]
[1727660644517,0.12400447,2641.4,2640.7,4.27940394]
[1727660644518,5.5678,2641.4,2640.7,4.27940394]
[1727660644721,5.5678,2641.4,2640.8,0.30285]
[1727660644722,0.30282,2641.2,2640.8,0.30285]
[1727660645612,0.71291,2641.3,2640.8,0.30285]
[1727660646010,0.4101,2641.3,2640.8,3.2078]
[1727660646315,0.4101,2641.3,2641.1,0.30282]
[1727660646509,0.4101,2641.3,2641.2,0.3734]
[1727660646709,3.2078,2641.4,2641.2,0.3734]
[1727660646911,0.4101,2641.6,2641.2,0.3734]
[1727660647126,2.36,2641.5,2641.2,0.3734]
[1727660647310,2.36,2641.5,2640.9,0.4014]
[1727660647311,2.36,2641.3,2640.7,0.3937]
[1727660647510,0.71291,2641.2,2640.9,0.3734]
[1727660647911,0.4101,2641.2,2640.9,0.3734]
[1727660648113,0.71292,2641.2,2640.9,0.3734]
[1727660649222,0.71291,2641.2,2640.9,0.67624]
[1727660649428,0.71291,2641.2,2640.9,0.3734]
[1727660650619,0.71291,2641.2,2640.9,0.67625]
[1727660651225,0.71291,2641.2,2640.9,0.3734]
[1727660652124,0.30283,2641.1,2640.9,0.3734]
[1727660652421,0.30285,2640.9,2640.7,0.3937]
[1727660652626,0.30287,2640.7,2640.6,0.3821]
[1727660652922,2.36,2640.8,2640.6,0.3821]
[1727660652923,6.25597,2640.8,2640.6,0.3821]
[1727660653312,0.3853,2640.8,2640.6,0.3821]
[1727660653622,2.36,2641.0,2640.6,0.68497]
[1727660653821,2.66284,2641.0,2640.6,0.68497]
[1727660654020,0.30285,2640.9,2640.6,0.68497]
[1727660654325,3.2078,2640.9,2640.6,0.68497]
[1727660654625,3.2078,2640.9,2640.6,0.3821]
[1727660654824,3.51065,2640.9,2640.6,0.3821]
[1727660655025,3.2078,2640.9,2640.6,0.68498]
[1727660655514,0.30284,2641.0,2640.7,0.68747]
[1727660656020,3.90283,2641.1,2640.7,0.68747]
[1727660656324,3.6,2641.1,2640.7,0.3846]
[1727660656519,3.90283,2641.1,2640.8,0.68115]
[1727660656723,3.90283,2641.1,2640.8,0.3783]
[1727660658217,0.30284,2641.0,2640.8,0.3783]
[1727660658520,3.6,2641.1,2640.8,0.3783]
[1727660658521,3.90283,2641.1,2640.8,0.3783]
[1727660659224,3.6,2641.1,2640.8,0.3783]
[1727660659413,3.90283,2641.1,2640.8,0.3783]
[1727660659614,1.09,2641.0,2640.8,0.68115]
[1727660660625,1.09,2641.0,2640.9,0.30285]
[1727660660829,0.3922,2641.1,2640.8,0.3783]
[1727660661132,0.3922,2641.1,2640.9,0.30284]
[1727660661426,0.3922,2641.1,2640.9,0.69664]
[1727660661727,0.3922,2641.1,2640.9,0.3938]
[1727660662527,0.3922,2641.1,2640.9,0.69664]
[1727660664132,1.09,2641.2,2640.9,0.69664]
[1727660664926,1.39282,2641.2,2640.9,0.69665]
[1727660665527,1.09,2641.2,2640.9,0.3938]
[1727660665723,1.09,2641.0,2640.8,0.3783]
[1727660665927,1.09,2641.0,2640.8,0.68115]
[1727660666127,1.09,2641.0,2640.8,0.3783]
[1727660666330,1.09,2641.0,2640.9,0.30285]
[1727660666532,1.09,2641.0,2640.8,0.3783]
[1727660666836,1.09,2641.0,2640.8,0.68115]
[1727660667030,1.09,2641.0,2640.9,0.30285]
[1727660668027,0.30282,2641.2,2640.8,0.3783]
[1727660668028,1.09,2641.2,2640.8,0.3783]
[1727660668425,1.09,2641.2,2641.0,0.30283]
[1727660668825,1.09,2641.2,2641.1,0.3866]
[1727660669021,0.3708,2641.3,2641.2,0.30281]
[1727660669529,0.3708,2641.3,2641.2,0.4035]
[1727660669933,0.3708,2641.3,2641.2,0.70631]
[1727660671831,0.3708,2641.3,2641.2,0.4035]
[1727660672029,0.3708,2641.3,2641.2,0.70631]
[1727660672633,1.7636,2641.3,2641.1,0.3866]
[1727660672933,0.30281,2641.2,2641.1,0.3866]
[1727660673133,4.97141,2641.3,2641.1,0.3866]
[1727660673928,4.6686,2641.3,2641.1,0.3866]
[1727660674239,4.6686,2641.3,2641.1,0.68941]
[1727660676528,1.14439,2641.8,2641.1,0.3866]
[1727660676529,3.2078,2641.7,2641.1,0.3866]
[1727660676727,3.2078,2641.7,2641.2,0.69421]
[1727660676728,0.30278,2641.5,2641.2,0.69421]
[1727660676935,1.39279,2641.4,2641.1,0.68942]
[1727660677241,1.09,2641.4,2641.2,0.30281]
[1727660677431,0.397,2641.3,2641.2,0.30281]
[1727660683339,1.487,2641.3,2641.1,0.3866]
[1727660683640,1.78981,2641.3,2641.1,0.3866]
[1727660683836,1.78981,2641.3,2640.8,0.98430838]
[1727660683837,4.6948,2641.3,2640.8,0.98430838]
[1727660684140,4.6948,2641.3,2640.5,1.96861677]
[1727660684141,1.39285,2640.9,2640.6,0.3737]
[1727660684342,0.3834,2640.8,2640.6,0.3737]
[1727660684842,0.3834,2640.8,2640.6,0.67658]
[1727660685346,0.3834,2640.8,2640.6,0.3737]
[1727660685644,0.3834,2640.8,2640.6,0.67658]
[1727660686637,0.3834,2640.8,2640.6,0.3737]
[1727660686841,0.3834,2640.8,2640.6,0.67658]
[1727660687344,0.3834,2640.8,2640.7,0.30287]
[1727660687534,3.2078,2641.0,2640.8,0.30286]
[1727660687535,1.09,2641.0,2640.8,0.30286]
[1727660688647,1.09,2641.0,2640.7,0.98430838]
[1727660688846,1.09,2641.0,2640.7,1.28716838]
[1727660689441,1.09,2641.0,2640.8,0.30286]
[1727660689642,0.4088,2641.1,2640.8,1.68835838]
[1727660689848,0.4088,2641.1,2640.9,0.3957]
[1727660690048,0.4088,2641.1,2640.9,0.69854]
[1727660690950,0.4088,2641.1,2641.0,0.30283]
[1727660691145,4.2978,2641.4,2641.1,0.30282]
[1727660691348,1.39279,2641.4,2641.2,0.3837]
[1727660691539,0.3774,2641.3,2641.2,0.3837]
[1727660692436,1.4674,2641.3,2641.2,0.3837]
[1727660694836,0.3774,2641.3,2641.2,0.3837]
[1727660695040,1.4674,2641.3,2641.2,0.3837]
[1727660695240,1.4674,2641.3,2640.9,4.58780838]
[1727660695241,1.4674,2641.3,2640.9,3.6035]
[1727660695541,1.09,2641.1,2641.0,0.392]
[1727660696455,1.09,2641.1,2641.0,0.69483]
[1727660696751,0.3774,2641.3,2641.0,0.69483]
[1727660696752,1.09,2641.2,2641.0,0.69483]
[1727660696947,1.09,2641.2,2641.0,0.392]
[1727660697250,1.09,2641.2,2641.0,0.69483]
[1727660697449,1.09,2641.2,2641.0,0.392]
[1727660697644,1.09,2641.2,2641.1,0.30282]
[1727660697850,1.09,2641.2,2641.0,0.392]
[1727660698055,1.09,2641.2,2641.0,0.69483]
[1727660699847,1.09,2641.2,2641.1,0.30282]
[1727660700546,0.3774,2641.3,2641.2,0.30281]
[1727660701053,0.3774,2641.3,2641.0,0.392]
[1727660701054,3.6008,2641.7,2641.0,1.482]
[1727660701245,3.6008,2641.7,2641.2,1.09]
[1727660701246,0.3804,2641.6,2641.2,1.09]
[1727660701445,1.4704,2641.6,2641.3,0.4102]
[1727660701753,1.4704,2641.6,2640.9,0.3957]
[1727660701754,4.2978,2641.4,2640.3,1.96861677]
[1727660701941,0.30289,2640.6,2640.4,1.33897898]
[1727660702252,3.2078,2640.8,2640.3,2.78441677]
[1727660702253,1.09,2640.5,2640.3,0.8158]
[1727660703151,1.09,2640.5,2640.4,0.376]
[1727660703649,3.2078,2640.8,2640.4,4.1632]
[1727660703840,3.2078,2640.8,2640.1,1.96861677]
[1727660703841,0.30293,2640.2,2640.1,1.96861677]
[1727660704045,0.30293,2640.2,2639.4,4.33893363]
[1727660704046,5.5678,2640.2,2639.5,0.303]
[1727660704243,2.36,2639.9,2639.4,0.7853]
[1727660704440,3.2078,2640.2,2639.7,4.27194689]
[1727660704441,5.5678,2640.2,2639.7,4.27194689]
[1727660704646,2.36,2640.2,2639.7,0.30298]
[1727660704943,2.36,2640.2,2639.5,3.2078]
[1727660705147,2.36,2640.2,2639.7,0.30298]
[1727660705450,3.92009124,2640.8,2639.9,0.30296]
[1727660705451,2.36,2640.4,2639.9,0.30296]
[1727660705653,2.36,2640.4,2640.0,1.1761]
[1727660706151,2.36,2640.4,2639.3,3.74677097]
[1727660706152,2.36,2640.1,2639.0,5.18838774]
[1727660706352,2.36,2639.3,2639.1,0.7759]
[1727660706545,2.36,2639.3,2639.1,0.3997]
[1727660707747,2.36,2639.5,2639.1,0.3997]
[1727660708353,2.66301,2639.5,2639.1,0.3997]
[1727660709453,3.2078,2639.7,2639.1,0.3997]
[1727660709454,2.36,2639.3,2639.1,0.3997]
[1727660710254,2.36,2639.5,2639.1,0.3997]
[1727660710454,2.66301,2639.5,2639.1,0.3997]
[1727660710753,2.36,2639.5,2639.1,0.3997]
[1727660711455,5.95876,2640.0,2639.2,7.71071083]
[1727660711652,5.87076,2640.0,2639.3,0.3876]
[1727660711849,5.87076,2640.0,2639.3,0.69062]
[1727660712146,5.5678,2640.0,2639.3,0.3876]
[1727660712351,0.30297,2639.9,2639.3,0.3876]
[1727660712655,2.36,2639.8,2639.3,0.3876]
[1727660714058,2.36,2639.8,2638.1,2.07061677]
[1727660714059,2.36,2639.4,2638.1,2.07061677]
[1727660714355,0.30316,2638.2,2637.7,0.088]
[1727660714651,2.36,2638.4,2637.6,0.30323]
[1727660714652,3.2078,2638.3,2637.6,0.30323]
[1727660714852,3.51095,2638.3,2637.7,0.30321]
[1727660715050,2.36,2637.8,2637.7,4.15484147]
[1727660715253,2.36,2637.8,2637.4,0.70954]
[1727660715649,3.2078,2637.7,2637.5,4.15484147]
[1727660717050,2.36,2637.6,2637.2,0.3707]
[1727660717255,1.427,2638.3,2637.2,0.3707]
[1727660717256,2.36,2637.3,2637.2,0.3707]
[1727660717951,2.36,2637.3,2637.1,0.30328]
[1727660719050,5.5678,2637.3,2636.7,0.81]
[1727660719251,5.5678,2637.3,2637.1,0.30328]
[1727660720353,5.5678,2637.3,2636.8,4.23153207]
[1727660720354,5.5678,2637.3,2637.2,0.30327]
[1727660720561,0.102,2638.1,2637.2,4.05357409]
[1727660720562,5.95897,2638.1,2637.2,4.05357409]
[1727660720777,3.2078,2637.8,2637.4,0.30324]
[1727660720950,3.2078,2637.8,2637.1,3.2078]
[1727660721352,3.2078,2637.8,2637.5,0.30323]
[1727660721548,3.2078,2637.8,2637.2,4.30780777]
[1727660721549,2.36,2637.6,2637.2,4.30780777]
[1727660721752,2.36,2637.3,2637.1,0.30328]
[1727660721953,3.2078,2637.5,2636.9,3.2078]
[1727660722152,5.5678,2637.6,2637.2,0.30326]
[1727660722362,5.5678,2637.6,2637.3,0.30326]
[1727660722557,5.5678,2637.6,2637.0,4.24858882]
[1727660722757,5.5678,2637.6,2637.4,0.30325]
[1727660722964,5.5678,2637.6,2637.0,4.24858882]
[1727660723155,5.87103,2637.6,2637.1,0.30327]
[1727660723655,5.5678,2637.6,2637.2,0.30327]
[1727660723861,5.5678,2637.6,2637.0,4.62008882]
[1727660724067,2.36,2637.3,2637.0,4.62008882]
[1727660724359,2.66327,2637.3,2637.0,0.3715]
[1727660724555,2.66327,2637.3,2637.0,0.67478]
[1727660724556,2.36,2637.3,2637.0,0.67478]
[1727660724964,2.36,2637.3,2637.0,0.3715]
[1727660725664,2.36,2637.3,2637.0,0.67479]
[1727660726363,2.36,2637.5,2637.0,0.3715]
[1727660726565,2.66324,2637.5,2637.1,0.30328]
[1727660726957,2.36,2637.5,2637.0,0.3715]
[1727660727166,2.36,2637.5,2637.2,0.30327]
[1727660727576,1.427,2637.9,2636.6,3.2078]
[1727660727577,5.5678,2637.3,2636.6,3.2078]
[1727660727871,5.5678,2637.3,2636.8,0.30332]
[1727660728064,5.87106,2637.3,2636.9,0.3033]
[1727660728363,2.6633,2637.0,2636.6,0.30333]
[1727660728562,5.5678,2637.0,2636.8,0.30331]
[1727660728765,5.5678,2637.0,2636.8,0.30332]
[1727660728968,5.5678,2637.0,2636.7,0.30332]
[1727660729666,5.8711,2637.0,2636.6,0.30333]
[1727660730063,5.5678,2637.0,2636.4,0.3982]
[1727660730368,5.8711,2637.0,2636.6,0.30333]
[1727660730867,5.8711,2637.0,2636.7,0.30333]
[1727660731068,5.5678,2637.0,2636.7,0.30333]
[1727660731565,5.8711,2637.0,2636.7,0.30333]
[1727660731774,5.5678,2637.0,2636.7,0.30333]
[1727660732171,5.87109,2637.0,2636.4,0.3982]
[1727660732364,5.87109,2637.0,2636.7,0.30333]
[1727660732561,5.87109,2637.0,2636.4,0.3982]
[1727660732778,2.36,2636.8,2636.4,0.3982]
[1727660732976,2.36,2636.8,2635.9,3.96636]
[1727660732977,0.30336,2636.5,2636.1,0.30339]
[1727660733270,0.30336,2636.5,2635.5,3.11867]
[1727660733271,0.30337,2636.4,2636.0,1.0811]
[1727660733565,3.2078,2636.4,2636.1,0.3034]
[1727660733765,3.51117,2636.4,2636.0,0.7777]
[1727660733963,3.2078,2636.4,2636.0,0.7777]
[1727660734366,0.75828,2636.9,2636.0,0.7777]
[1727660734367,0.30332,2636.8,2636.5,0.30335]
[1727660734570,3.2078,2636.7,2636.4,0.30335]
[1727660735066,3.2078,2636.7,2636.6,0.30334]
[1727660735266,3.5111,2637.0,2636.6,0.30333]
[1727660735465,3.5111,2637.0,2636.2,2.36]
[1727660735466,3.2078,2637.0,2636.2,2.36]
[1727660735661,3.2078,2637.0,2636.7,0.30332]
[1727660735868,3.2078,2637.0,2636.4,0.30336]
[1727660736065,2.7662,2637.1,2636.0,6.3455]
[1727660736066,3.2078,2636.8,2636.0,0.7777]
[1727660736259,3.2078,2636.8,2636.5,0.30335]
[1727660736460,3.2078,2636.8,2636.0,7.10403]
[1727660736767,3.2078,2636.8,2636.1,4.24577783]
[1727660736961,3.2078,2636.8,2636.5,0.30335]
[1727660737158,3.2078,2636.8,2636.1,4.24577783]
[1727660737159,3.51112,2636.8,2636.4,0.30335]
[1727660737558,0.30333,2636.7,2636.3,0.30337]
[1727660737763,0.30335,2636.5,2636.2,0.30338]
[1727660737963,3.51115,2636.5,2636.2,0.30338]
[1727660738168,3.2078,2636.5,2636.3,0.30337]
[1727660738375,0.30337,2636.4,2636.1,0.30339]
[1727660738777,3.2078,2636.5,2636.0,0.7777]
[1727660738971,3.2078,2636.5,2636.2,0.30338]
[1727660739874,3.2078,2636.5,2636.1,0.30339]
[1727660739875,3.51116,2636.5,2636.1,0.30339]
[1727660740080,3.51116,2636.5,2636.0,0.7777]
[1727660740081,0.30337,2636.4,2636.0,0.7777]
[1727660740377,3.5954,2636.5,2636.2,0.30338]
[1727660740574,3.89876,2636.5,2636.1,0.30339]
[1727660740877,3.89876,2636.5,2636.0,0.7777]